Cogmind - Beta 17 @@@ ROGUE MODE // 2026.07.09 @ 03:40:03 Player: ChCbias Result: Destroyed by W4-X2Y(R) with Subdweller Laser Performance ------------- Evolutions (0) 0 Regions Visited (3) 600 Robots Destroyed (25) 125 Value Destroyed (722) 722 Prototype IDs (1) 20 Alien Tech Used (0) 0 Bonus (0) 0 TOTAL SCORE: 1467 Bonus ------- None Cogmind --------- Core Integrity 0/250 Matter 198/300 Energy 88/250 System Corruption 1% Temperature Cool (12) Movement Treading (160) Location -10/Subcaves Parts ------- > --- POWER (1+1) ------ Ion Engine > --- PROPULSION (2) --- Light Treads Light Treads > --- UTILITY (2) ------ Heat Sink Large Storage Unit > --- WEAPON (2) ------- Powered Cannon > --- INVENTORY (15) --- Light Ion Engine Light Treads Light Treads Light Treads Light Treads Wheel Wheel Medium Storage Unit Medium Matter Pod (100) Sensor Array Light Cannon Light Cannon Peak State ------------ > --- POWER ------------ Ion Engine > --- PROPULSION ------- Light Treads Light Treads > --- UTILITY ---------- Large Storage Unit Subdweller Optics > --- WEAPON ----------- Powered Cannon > --- INVENTORY -------- Light Ion Engine Light Treads Light Treads Light Treads Light Treads Wheel Wheel Heat Sink Medium Storage Unit Medium Matter Pod Sensor Array Light Cannon Light Cannon [Rating: 21] Favorites ----------- Power Ion Engine Engine Ion Engine Propulsion Light Treads Treads Light Treads Leg Aluminum Leg Wheel Wheel Utility Large Storage Unit Device Subdweller Optics Storage Large Storage Unit Protection Light Armor Plating Weapon Small Laser Energy Gun Small Laser Energy Cannon Powered Cannon Ballistic Cannon Light Cannon Launcher Grenade Launcher Build | -11 -10 -10 -10 ------- Run | Yrd Mat Min Sub Slots Evolved . | . . . . Power . | . . . . Propulsion . | . . . . Utility . | . . . . Weapon . | . . . . Parts Attached 23 | 6 12 . 5 Power 1 | 1 . . . Engine 1 | 1 . . . Core . | . . . . Reactor . | . . . . Propulsion 8 | 2 6 . . Treads 4 | 2 2 . . Leg 2 | . 2 . . Wheel 2 | . 2 . . Hover . | . . . . Flight . | . . . . Utility 6 | 1 3 . 2 Device 2 | . . . 2 Storage 3 | 1 2 . . Processor . | . . . . Hackware . | . . . . Protection 1 | . 1 . . Artifact . | . . . . Weapon 8 | 2 3 . 3 Energy Gun 3 | 2 1 . . Energy Cannon 1 | . . . 1 Ballistic Gun . | . . . . Ballistic Cannon 2 | . 1 . 1 Launcher 2 | . 1 . 1 Special Weapon . | . . . . Impact Weapon . | . . . . Slashing Weapon . | . . . . Piercing Weapon . | . . . . Special Melee Weapon . | . . . . Unidentified Prototypes 1 | . . . 1 Parts Lost 8 | . 5 . 3 Power . | . . . . Propulsion 2 | . 2 . . Utility 1 | . 1 . . Weapon 5 | . 2 . 3 Highest Loss Streak 3 | . 3 . 3 To Critical Strikes . | . . . . Average Backups 10 | 2 8 14 13 Power . | . 1 1 1 Propulsion 5 | 2 4 7 6 Utility 2 | . 1 3 3 Weapon 2 | . 1 2 2 Tool/Special . | . . . . Unused Backups 6 | . . . 6 Power 1 | . . . 1 Propulsion 4 | . . . 4 Utility 1 | . . . 1 Weapon . | . . . . Tool/Special . | . . . . Average Slot Usage (%) 87 | . 88 85 88 Engine 13 | . 14 14 13 Treads 24 | . 21 28 27 Wheel 1 | . 3 . . Device 2 | . . . 9 Storage 13 | . 14 14 13 Protection 2 | . 5 . . Energy Gun 16 | . 21 14 8 Ballistic Cannon 8 | . 3 14 10 Peak Build Rating 21 | 6 7 7 21 Average Rating 7 | 4 6 7 11 On Entrance 5 | . 6 7 7 Avg Prop Armor Cover (%) . | . . . . Naked Turns . | . . . . Heaviest Build 36 | 13 33 29 36 Greatest Support 40 | 40 40 40 40 Greatest Overweight (x) 1 | 1 1 . . Average Overweight (x) . | . . . . Largest Inventory Capacity 15 | 8 15 15 15 Average Capacity 13 | 7 13 15 15 Most Carried 15 | 6 14 15 14 Average Carried 10 | 3 8 14 13 Final Capacity 15 | 8 15 15 15 Final Carried 14 | 6 14 14 12 Class Distribution -------------------- 100% | Mutant Dominant Class ---------------- Mutant | -10/Materials Mutant | -10/Mines Mutant | -10/Subcaves Resources | -11 -10 -10 -10 ----------- Run | Yrd Mat Min Sub Matter Collected 726 | 211 194 82 239 Remotely . | . . . . Salvage Created 677 | . 463 . 214 Parts 47 | . 29 . 18 Haulers Intercepted . | . . . . Recyclers Shooed . | . . . . Parts Field Recycled . | . . . . Retrieved Matter . | . . . . Parts Self-Destructed . | . . . . Prevented . | . . . . Parts Restored . | . . . . Kills | -11 -10 -10 -10 ------- Run | Yrd Mat Min Sub Combat Hostiles Destroyed 20 | . 13 . 7 Guns 7 | . 6 . 1 Cannons 2 | . . . 2 AOE 10 | . 7 . 3 Classes Destroyed 6 | . 5 . 1 Worker 1 | . 1 . . Builder 2 | . 2 . . Recycler 2 | . 2 . . Swarmer 3 | . 3 . . Grunt 10 | . 10 . . Subdweller 7 | . . . 7 Best Kill Streak 7 | . 7 . 2 Combat Bots Only 7 | . 7 . 2 Max Kills in Single Turn 3 | . 3 . 2 Gunslinging . | . . . . Exploded 3 | . 3 . 2 Melee . | . . . . Uniques/NPCs Destroyed . | . . . . Combat | -11 -10 -10 -10 -------- Run | Yrd Mat Min Sub Hostile Shots Fired 111 | . 77 . 34 Missed 35 | . 23 . 12 Hits 76 | . 54 . 22 Projectile 76 | . 54 . 22 Critical Strikes 1 | . 1 . . Damage Taken 1352 | . 744 . 608 Core 255 | . 129 . 126 Absorbed by Shields . | . . . . Core Remaining (%) 100 | 100 . . . Volleys Fired 83 | . 54 . 29 Largest 2 | . 2 . 2 Hottest 90 | . 90 . 70 Shots Fired 135 | . 85 . 50 Gun 85 | . 73 . 12 Cannon 34 | . 1 . 33 Launcher 16 | . 11 . 5 Special . | . . . . Kinetic 26 | . 1 . 25 Thermal 72 | . 52 . 20 Explosive 16 | . 11 . 5 Electromagnetic 21 | . 21 . . Robot Hit Streak 17 | . 17 . 17 Robot Miss Streak 5 | . 5 . 3 Penetration Max . | . . . . Secondary Targets . | . . . . Shots Hit Robots 82 | . 50 . 32 Core Hits 48 | . 37 . 11 Critical Kills 1 | . . . 1 Critical Parts Destroyed . | . . . . Critical Strikes 3 | . 1 . 2 Burn 1 | . 1 . . Meltdown 1 | . . . 1 Blast 1 | . . . 1 Melee Attacks . | . . . . Impact . | . . . . Slashing . | . . . . Piercing . | . . . . Sneak Attacks . | . . . . Combat Hostiles . | . . . . Follow-up Attacks . | . . . . Damage Inflicted 2523 | . 1508 . 1015 Guns 643 | . 596 . 47 Cannons 565 | . . . 565 Explosions 1310 | . 907 . 403 Melee . | . . . . Ramming 5 | . 5 . . Kinetic 217 | . . . 217 Thermal 940 | . 545 . 395 Explosive 1217 | . 814 . 403 Electromagnetic 144 | . 144 . . Impact . | . . . . Slashing . | . . . . Piercing . | . . . . Highest Corruption 1 | . 1 1 1 Average Corruption 1 | . 1 1 1 Corruption Purged . | . . . . Corruption Blocked . | . . . . Effects 5 | . 1 . 4 Matter Fused 3 | . 1 . 2 Data Loss (minor) 1 | . . . 1 Data Loss (major) 1 | . . . 1 Overload Shots . | . . . . Overflow Damage 77 | . 2 . 75 Projectiles 54 | . . . 54 Explosions 23 | . 2 . 21 Melee . | . . . . Knockbacks 3 | . . . 3 Impact . | . . . . Kinetic 3 | . . . 3 Secondary . | . . . . Self-Inflicted Damage 142 | . . . 142 Shots 4 | . . . 4 Rammed 1 | . 1 . . Targets Rammed 1 | . 1 . . Kicked . | . . . . Crushed . | . . . . Highest Temperature 428 | . 428 . . Average Temperature 174 | . 174 . . Received Heat Transfer 525 | . 417 . 108 Effects 1 | . 1 . . Damage (minor) 1 | . 1 . . Siege Activations . | . . . . Martial Activations . | . . . . Shielding Activations . | . . . . Robots Disrupted . | . . . . Combat Hostiles . | . . . . Robots Corrupted . | . . . . Combat Hostiles . | . . . . Parts Fried . | . . . . Impact Corruptions . | . . . . Robots Melted 1 | . . . 1 Combat Hostiles 1 | . . . 1 Parts Melted 4 | . 4 . . Heat Transferred 1473 | . 1373 . 100 Parts Sabotaged . | . . . . Parts Stolen . | . . . . Parts Stripped . | . . . . Power Chain Reactions 1 | . 1 . . Alert | -11 -10 -10 -10 ------- Run | Yrd Mat Min Sub Maximum Alert Level . | . . . . Low Security (%) 100 | 100 100 100 . Level 1 . | . . . . Level 2 . | . . . . Level 3 . | . . . . Level 4 . | . . . . Level 5 . | . . . . High Security . | . . . . Max Security . | . . . . Peak Influence 188 | . 188 28 . Initial 28 | . . 28 . Average 49 | . 75 3 . Influence Increases 386 | . 386 . . Destroy 0b10 Robot/C 260 | . 260 . . Destroy 0b10 Robot/NC 25 | . 25 . . Destroy Leader 40 | . 40 . . Successful Hack 5 | . 5 . . Disable Machine 15 | . 15 . . Destroy Structure 26 | . 26 . . Lose Combat Pursuer 15 | . 15 . . Influence Decreases 386 | . 312 74 . Entered New Map 46 | . . 46 . Time Decay 290 | . 262 28 . Lost Part 50 | . 50 . . Squads Dispatched 2 | . 2 . . Investigation 1 | . 1 . . Extermination . | . . . . Reinforcement 1 | . 1 . . Assault . | . . . . Garrison . | . . . . Intercept . | . . . . Searches Triggered . | . . . . Construction Impeded . | . . . . Haulers Reinforced . | . . . . Active Scanning Responses . | . . . . Cargo Convoy Interrupts . | . . . . Stealth | -11 -10 -10 -10 --------- Run | Yrd Mat Min Sub Distress Signals 2 | . 2 . . Communications Jammed . | . . . . Distress Signals . | . . . . Times Spotted 27 | . 18 . 9 Peak Tracking Total 7 | . 7 . 3 Tactical Retreats 2 | . 2 . . Traps | -11 -10 -10 -10 ------- Run | Yrd Mat Min Sub Traps Triggered 1 | . 1 . . Indirectly . | . . . . Trap Hack Attempts . | . . . . Triggered . | . . . . Disarmed . | . . . . Reprogrammed . | . . . . Reused . | . . . . Traps Extracted . | . . . . Installed . | . . . . Triggered . | . . . . Machines | -11 -10 -10 -10 ---------- Run | Yrd Mat Min Sub Machines Disabled 1 | . 1 . . Max in Single Turn 1 | . 1 . . Machines Repaired . | . . . . Machines Dismantled . | . . . . Machines Sabotaged . | . . . . Overloaded Fab Kills . | . . . . Hacking | -11 -10 -10 -10 --------- Run | Yrd Mat Min Sub Machines Accessed 2 | . 2 . . Terminals 2 | . 2 . . Fabricators . | . . . . Repair Stations . | . . . . Recycling Units . | . . . . Scanalyzers . | . . . . Garrison Access . | . . . . Total Hacks 8 | . 8 . . Successful 4 | . 4 . . Failed 4 | . 4 . . Catastrophic 1 | . 1 . . Database Lockouts . | . . . . Manual 7 | . 7 . . Terminals 8 | . 8 . . Fabricators . | . . . . Repair Stations . | . . . . Recycling Units . | . . . . Scanalyzers . | . . . . Garrison Access . | . . . . Terminal Hacks 2 | . 2 . . Robot Analysis 1 | . 1 . . Alert Level 1 | . 1 . . Fabricator Hacks . | . . . . Repair Station Hacks . | . . . . Recycling Unit Hacks . | . . . . Scanalyzer . | . . . . Garrison Access Hacks . | . . . . Unauthorized Hacks 2 | . 2 . . Terminals 2 | . 2 . . Botnet 2 | . 2 . . Fabricators . | . . . . Repair Stations . | . . . . Recycling Units . | . . . . Scanalyzers . | . . . . Garrison Access . | . . . . Data Cores Recovered . | . . . . Used . | . . . . Hacking Detections 2 | . 2 . . Full Trace Events 2 | . 2 . . Feedback Events . | . . . . Feedback Blocked . | . . . . Robot Schematics Acquired . | . . . . Robots Built . | . . . . Authchips . | . . . . Time . | . . . . Total Robot Build Rating . | . . . . Part Schematics Acquired . | . . . . Parts Built . | . . . . Authchips . | . . . . Time . | . . . . Total Part Build Rating . | . . . . Part Studies Acquired . | . . . . Parts Repaired . | . . . . Time . | . . . . Parts Recycled . | . . . . Recycled Matter . | . . . . Retrieved Matter . | . . . . Retrieved Components . | . . . . Parts Scanalyzed . | . . . . Part Schematics Acquired . | . . . . Parts Damaged . | . . . . Bothacking | -11 -10 -10 -10 ------------ Run | Yrd Mat Min Sub Used RIF Installer . | . . . . Robots Hacked . | . . . . Non-combat . | . . . . Combat . | . . . . Robot Hacks Applied . | . . . . Relay Couplers Released . | . . . . Fabnet Peak Effective % . | . . . . Robots Rewired . | . . . . Allies Hacked . | . . . . Hacks Repelled . | . . . . Allies | -11 -10 -10 -10 -------- Run | Yrd Mat Min Sub Total Allies . | . . . . Largest Group . | . . . . Highest-Rated Group . | . . . . Highest-Rated Ally . | . . . . Total Orders . | . . . . Ally Attacks . | . . . . Total Damage . | . . . . Kills . | . . . . Allies Corrupted . | . . . . Allies Melted . | . . . . Intel | -11 -10 -10 -10 ------- Run | Yrd Mat Min Sub Active Infowar (turns) 270 | . . . 270 Optics 270 | . . . 270 Robot Analysis Total 1 | . 1 . . Derelict Logs Recovered 1 | . . 1 . Drone Launches . | . . . . Drone Recoveries . | . . . . Exploration | -11 -10 -10 -10 ------------- Run | Yrd Mat Min Sub Turns Passed 1633 | 80 776 343 434 Spaces Moved 861 | 45 402 205 209 Core 7 | 7 . . . Treads 721 | 38 269 205 209 Legs 21 | . 21 . . Wheels 112 | . 112 . . Hover . | . . . . Flight . | . . . . Fastest Speed 50 | 50 95 160 160 Average Speed 152 | 146 144 160 160 Slowest Speed 240 | 160 240 160 160 Overloaded Moves . | . . . . Propulsion Burnouts . | . . . . Robots Hopped . | . . . . Potential Cave-ins . | . . . . Cave-ins Triggered . | . . . . Exploration Rate (%) 33 | 3 71 42 18 Regions Visited 3 Branch Regions 2 Pre-discovered Areas 1 | . . 1 . Known Exits Taken . | . . . . Unknown Exits Taken 3 | 1 1 1 . Scrap Searched 3 | . . 1 2 Spaces Dug . | . . . . Terrain Destroyed 46 | . 28 . 18 Melee . | . . . . Projectile 1 | . . . 1 AOE 45 | . 28 . 17 Terrain Rammed . | . . . . Walls Destroyed . | . . . . Machines Disabled . | . . . . Actions | -11 -10 -10 -10 --------- Run | Yrd Mat Min Sub Total 1044 | 56 506 222 260 Wait 47 | . 24 12 11 Move 858 | 44 401 204 209 Hop . | . . . . Pick Up 17 | 6 8 3 . Fast Attach 13 | 6 5 . 2 Attach 7 | . 3 . 4 Detach 4 | . 2 . 2 Swap 9 | . 7 . 2 Drop 5 | . 1 3 1 Fire 83 | . 54 . 29 Melee . | . . . . Ram . | . . . . Kick . | . . . . Crush 1 | . 1 . . Escape Stasis . | . . . . Rewire . | . . . . Trap . | . . . . Miscellaneous . | . . . . Route ------- -11/Scrapyard -10/Materials (discovered 4 exits: [*Mat] / [*Min x2] / [*Sub]) -10/Mines -10/Subcaves History --------- Turn | Location | Event 11 | -11/Scrapyard | Discovered new exit (range 15) 81 | -11/Scrapyard | Entered Materials 281 | -10/Materials | Discovered new exit (range 16) 321 | -10/Materials | Build established: Mutant 499 | -10/Materials | Discovered new exit (range 16) 513 | -10/Materials | Destroyed 7 combat bots 599 | -10/Materials | Lost 3 parts (1n1u1w) 601 | -10/Materials | Core integrity fell below 50% 627 | -10/Materials | Discovered new exit (range 16) 681 | -10/Materials | Derelicts attacked the area 823 | -10/Materials | Discovered new exit (range 7) 857 | -10/Materials | Entered Mines 967 | -10/Mines | YI-UF0 nonchalantly dropped a Grenade Launcher on the ground 1083 | -10/Mines | Learned location of Mines (-9) 1160 | -10/Mines | Discovered new exit (range 6) 1200 | -10/Mines | Entered Subcaves 1449 | -10/Subcaves | A Subdweller sparked back to life 1449 | -10/Subcaves | A Subdweller sparked back to life 1449 | -10/Subcaves | A Subdweller sparked back to life 1502 | -10/Subcaves | Found Prototype Energy Cannon 1502 | -10/Subcaves | Identified Powered Cannon 1503 | -10/Subcaves | Lost 3 parts (3w) 1503 | -10/Subcaves | Attached Powered Cannon, gained temporary slot: Power 1631 | -10/Subcaves | Core integrity fell below 20% 1634 | -10/Subcaves | Destroyed by W4-X2Y(R) with Subdweller Laser Last Messages --------------- 01500_ Subatomizers dissect the Disposable Heat Sink. 01502_ Acquired Prototype Energy Cannon. 01502_ Identified Powered Cannon. 01503_ Core temporarily expanded with Power slot. 01507_ Sub. Optics shoots sparks and powers down. 01513_ System corrupted: Matter fused (-6). 01515_ Subatomizers dissect the Disposable Heat Sink. 01521_ Dropped Broken Sub. Optics. 01546_ 8Z-DRQ(R) affixes Scrap Shield Fragment to Scrap Shield. 01553_ Acquired 14 matter. 01557_ System corrupted: Matter fused (-5). 01565_ Destroyed Sub. Monowheel. 01567_ 8Z-DRQ(R) suffers critical hit (Meltdown). 01577_ Acquired 7 matter. Map ----- +----------------------------------------------------+ | | | | | | | | | | | | | ?????????????????????????????????????????????????? | | ?????????????????????????????????????????????????? | | ?????????????????????????????????????????????????? | | ?????????????????????????????????????????????????? | | ?????????????????????????????????????????????????? | | ?????????????????????????????????????????????????? | | ?????????????????????????????????????????????????? | | ?????????????????????????????????????????????????? | | ?????????????????????????????????????????????????? | | ?????????????????????????????????????????????????? | | ?????????????????????????????????????????????????? | | ?????????????????????????????????????????????????? | | ?????????????????????????????????????????????????? | | ?????????????????????????????????????????????????? | | ???###?######????????????????????????????????????? | | #### ### ######??#######??????????????????????? | | # #### ## ######?????????????????? | | ## #?????????????????? | | ## #### # ##????????????????? | | ?## ### ## # @ #????????????????? | | ?## # ## # #### R R #??????????? | | ?# """#??? = ##""#??????????? | | ?# #" " "#???? ####??????????????? | | ### ### # # "###????? #?????????????????? | | " # ## ######## ##????????#?????????????????? | | " ###??????#####???????????????????????????? | | " [## #????????????????????????????????????????? | | #????????????????????????????????????????? | | # "#????????????????????????????????????????? | | ##???????????????????????????????????????? | | "" #???????????????????????????????????????? | | # ! #???????????????????????????????????????? | | # % ##???????????????????????????????????????? | | # = !% #???????????????????????????????????????? | | # # #???????????????????????????????????????? | | % #???????????????????????????????????????? | | ## #???????????????????????????????????????? | | ?## #???????????????????????????????????????? | | ??## ###???????????????????????????????????????? | | ??#"" ##?????????????????????????????????????????? | | ??## " #?????????????????????????????????????????? | | ??## #?????????????????????????????????????????? | | ??# #?????????????????????????????????????????? | | ?##"" ##?????????????????????????????????????????? | +----------------------------------------------------+ Best States ------------- Heat Dissipation 35 Energy Generation 10 Energy Capacity 250 Matter Stores 300 Matter Capacity 300 Sight Range 21 Terrain Scan Density 10 Armor Coverage 150 Evasion (%) 41 Recoil Reduction 2 Item Schematics ----------------- None Robot Schematics ------------------ None Fabricated ------------ Nothing Repaired ---------- Nothing Studied --------- None Alien Tech Used ----------------- None Achievements -------------- None Challenges ------------ None Game ------ Seed SuspensionFissionProtomatter Manual? 0 Play Time 00:15:43 Cumulative 37.5 hours Start 2026.07.09 @ 03:24:40 End 2026.07.09 @ 03:40:03 Sessions 1 Manual Loads 0 Difficulty Rogue Special Mode None Game No. 31 Rogue 31 Adventurer 0 Explorer 0 Win Type - Total 0 Types 0/0/0/0/0/0/0/0/0/0 Lore% 26 Gallery% 27 Achievement% 28 Wizard Run 0 Options --------- Layout 1 ASCII 0 Keyboard 0 Movement Mouse Keybinds 0 Fullscreen 1 Font 24/Smallcaps Map View 50x35 Zoom Use 0% Tactical HUD 1 Map Filters NONE Filters NONE Steam 1 RUN: 25d56595-a39b-4df3-91ab-29a0e2a58d1f